fUST/lending_fUST_20240721
["ID","MTS","AMOUNT","RATE_DAILY","PERIOD"]
[332828168,1721556646308,-500.0,0.00013698,2]
[332828169,1721556646317,-500.0,0.00013698,2]
[332828170,1721556646329,-500.0,0.00013698,2]
[332828171,1721556646339,-560.29421083,0.00013698,2]
[332828172,1721556646349,-505.78497756,0.00013698,2]
[332828173,1721556646358,-500.0,0.00013698,2]
[332828174,1721556646368,-500.0,0.00013698,2]
[332828175,1721556646378,-666.49,0.00013698,2]
[332828176,1721556646387,-500.0,0.00013698,2]
[332828177,1721556646396,-1470.26,0.00013698,2]
[332828178,1721556646407,-500.0,0.00013698,2]
[332828179,1721556646417,-500.0,0.00013698,2]
[332828180,1721556646427,-551.31,0.00013698,2]
[332828181,1721556646437,-522.79535084,0.00013698,2]
[332828182,1721556646447,-576.87,0.00013698,2]
[332828183,1721556646456,-500.0,0.00013698,2]
[332828184,1721556646466,-500.0,0.00013698,2]
[332828185,1721556646475,-500.0,0.00013698,2]
[332828186,1721556646485,-330.83450562,0.00013698,2]
[332828187,1721556646494,-500.0,0.00013698,2]
[332828188,1721556646504,-500.0,0.00013698,2]
[332828189,1721556646514,-301.69324672,0.00013698,2]
[332828190,1721556646524,-1586.94,0.00013698,2]
[332828191,1721556646534,-1761.37,0.00013698,2]
[332828192,1721556646543,-503.23587098,0.00013698,2]
[332828193,1721556646553,-500.0,0.00013698,2]
[332828194,1721556646563,-500.0,0.00013698,2]
[332828195,1721556646574,-500.0,0.00013698,2]
[332828196,1721556646584,-500.0,0.00013698,2]
[332828197,1721556646594,-3424.0,0.00013698,2]
[332828198,1721556646604,-503.71708603,0.00013698,2]
[332828199,1721556646617,-3000.0,0.00013699,2]
[332828200,1721556646626,-166.666666,0.00013699,2]
[332828201,1721556646638,-302.406421,0.00013699,2]
[332828202,1721556646649,-150.0,0.0001389,2]
[332828204,1721556646662,-150.0,0.00013945,2]
[332828206,1721556646674,-505.0,0.00013945,2]
[332828208,1721556646685,-1408.0,0.00013945,2]
[332828210,1721556646696,-500.0,0.00013972,2]
[332828211,1721556646707,-500.0,0.00013972,2]
[332828212,1721556646719,-500.0,0.00013972,2]
[332828213,1721556646730,-500.0,0.00013972,2]
[332828214,1721556646742,-500.0,0.00013972,2]
[332828215,1721556646753,-500.0,0.00013972,2]
[332828216,1721556646763,-2105.99,0.00013972,2]
[332828217,1721556646774,-500.0,0.00013972,2]
[332828218,1721556646785,-500.0,0.00013972,2]
[332828219,1721556646796,-151.0,0.00013972,2]
[332828220,1721556646806,-500.0,0.00013972,2]
[332828221,1721556646816,-519.63091483,0.00013972,2]
[332828222,1721556646826,-500.0,0.00013972,2]
[332828223,1721556646835,-762.19,0.00013972,2]
[332828224,1721556646848,-500.0,0.00013972,2]
[332828225,1721556646857,-500.0,0.00013972,2]
[332828226,1721556646869,-500.0,0.00013972,2]
[332828227,1721556646879,-500.0,0.00013972,2]
[332828228,1721556646889,-569.25,0.00013972,2]
[332828229,1721556646900,-500.0,0.00013972,2]
[332828230,1721556646909,-500.0,0.00013972,2]
[332828231,1721556646920,-500.0,0.00013972,2]
[332828232,1721556646930,-1005.26,0.00013972,2]
[332828233,1721556646942,-500.0,0.00013972,2]
[332828234,1721556646952,-500.0,0.00013972,2]
[332828235,1721556646962,-500.0,0.00013972,2]
[332828236,1721556646972,-500.0,0.00013972,2]
[332828237,1721556646982,-536.49,0.00013972,2]
[332828238,1721556646993,-500.0,0.00013972,2]
[332828239,1721556647003,-585.19,0.00013972,2]
[332828240,1721556647015,-500.0,0.00013972,2]
[332828241,1721556647024,-551.49,0.00013972,2]
[332828242,1721556647038,-689.24,0.00013972,2]
[332828243,1721556647048,-500.0,0.00013972,2]
[332828244,1721556647060,-572.99,0.00013972,2]
[332828245,1721556647121,-500.0,0.00013972,2]
[332828246,1721556647133,-500.0,0.00013972,2]
[332828247,1721556647143,-500.0,0.00013972,2]
[332828248,1721556647153,-1356.8,0.00013972,2]
[332828249,1721556647163,-500.0,0.00013972,2]
[332828250,1721556647174,-500.0,0.00013972,2]
[332828251,1721556647185,-500.0,0.00013972,2]
[332828252,1721556647195,-1694.7,0.00013972,2]
[332828253,1721556647205,-505.98441518,0.00013972,2]
[332828254,1721556647215,-749.19,0.00013972,2]
[332828255,1721556647225,-500.0,0.00013972,2]
[332828256,1721556647234,-509.47,0.00013972,2]
[332828257,1721556647245,-500.0,0.00013972,2]
[332828258,1721556647256,-500.0,0.00013972,2]
[332828259,1721556647269,-1436.1,0.00013972,2]
[332828260,1721556647280,-502.39101307,0.00013972,2]
[332828261,1721556647290,-500.0,0.00013972,2]
[332828262,1721556647301,-500.0,0.00013972,2]
[332828263,1721556647311,-709.73,0.00013972,2]
[332828264,1721556647320,-500.0,0.00013972,2]
[332828265,1721556647333,-500.0,0.00013972,2]
[332828266,1721556647342,-500.0,0.00013972,2]
[332828267,1721556647353,-517.10630346,0.00013972,2]
[332828268,1721556647365,-704.97,0.00013972,2]
[332828269,1721556647374,-500.0,0.00013972,2]
[332828270,1721556647383,-874.58,0.00013972,2]
[332828271,1721556647393,-507.71024829,0.00013972,2]
[332828272,1721556647402,-500.0,0.00013972,2]
[332828273,1721556647411,-500.0,0.00013972,2]
[332828274,1721556647420,-500.0,0.00013972,2]
[332828275,1721556647429,-500.0,0.00013972,2]
[332828276,1721556647438,-685.22,0.00013972,2]
[332828277,1721556647447,-500.0,0.00013972,2]
[332828278,1721556647457,-655.13,0.00013972,2]
[332828279,1721556647466,-500.0,0.00013972,2]
[332828280,1721556647475,-500.0,0.00013972,2]
[332828281,1721556647485,-173.0,0.00013972,2]
[332828282,1721556647495,-563.9,0.00013972,2]
[332828283,1721556647504,-548.66,0.00013972,2]
[332828284,1721556647513,-680.32,0.00013972,2]
[332828285,1721556647524,-550.39,0.00013972,2]
[332828286,1721556647533,-1152.94,0.00013972,2]
[332828287,1721556647543,-500.0,0.00013972,2]
[332828288,1721556647553,-603.32,0.00013972,2]
[332828289,1721556647563,-500.0,0.00013972,2]
[332828290,1721556647573,-500.0,0.00013972,2]
[332828291,1721556647584,-500.0,0.00013972,2]
[332828292,1721556647594,-701.54,0.00013972,2]
[332828293,1721556647604,-2172.58,0.00013972,2]
[332828294,1721556647614,-500.0,0.00013972,2]
[332828295,1721556647624,-500.0,0.00013972,2]
[332828296,1721556647634,-2224.9,0.00013972,2]
[332828297,1721556647644,-500.0,0.00013972,2]
[332828298,1721556647653,-500.0,0.00013972,2]
[332828299,1721556647663,-500.0,0.00013972,2]
[332828300,1721556647677,-637.81,0.00013972,2]
[332828301,1721556647686,-500.0,0.00013972,2]
[332828302,1721556647695,-500.0,0.00013972,2]
[332828303,1721556647705,-518.54,0.00013972,2]
[332828304,1721556647717,-917.34,0.00013972,2]
[332828305,1721556647727,-500.0,0.00013972,2]
[332828306,1721556647737,-500.0,0.00013972,2]
[332828307,1721556647747,-614.0581903,0.00013972,2]
[332828308,1721556647758,-704.56,0.00013972,2]
[332828309,1721556647768,-500.0,0.00013972,2]
[332828310,1721556647778,-712.29,0.00013972,2]
[332828311,1721556647789,-506.41,0.00013972,2]
[332828312,1721556647799,-500.0,0.00013972,2]
[332828313,1721556647810,-840.01,0.00013972,2]
[332828314,1721556647821,-500.0,0.00013972,2]
[332828315,1721556647833,-500.0,0.00013972,2]
[332828316,1721556647844,-1482.97,0.00013972,2]
[332828317,1721556647855,-1499.31,0.00013972,2]
[332828318,1721556647865,-500.0,0.00013972,2]
[332828319,1721556647874,-500.0,0.00013972,2]
[332828320,1721556647884,-500.0,0.00013972,2]
[332828321,1721556647895,-774.28,0.00013972,2]
[332828322,1721556647904,-500.0,0.00013972,2]
[332828323,1721556647913,-500.0,0.00013972,2]
[332828324,1721556647924,-501.09,0.00013972,2]
[332828325,1721556647934,-500.0,0.00013972,2]
[332828326,1721556647944,-500.0,0.00013972,2]
[332828327,1721556647954,-500.0,0.00013972,2]
[332828328,1721556647963,-500.0,0.00013972,2]
[332828329,1721556647973,-684.94,0.00013972,2]
[332828330,1721556647983,-500.78773657,0.00013972,2]
[332828331,1721556647992,-634.20923295,0.00013972,2]
[332828332,1721556648001,-503.57721917,0.00013972,2]
[332828333,1721556648010,-520.4220506,0.00013972,2]
[332828334,1721556648021,-500.0,0.00013972,2]
[332828335,1721556648031,-500.0,0.00013972,2]
[332828336,1721556648040,-3216.63,0.00013972,2]
[332828337,1721556648052,-681.38,0.00013972,2]
[332828338,1721556648062,-1531.14,0.00013972,2]
[332828339,1721556648071,-500.0,0.00013972,2]
[332828340,1721556648083,-1028.54,0.00013972,2]
[332828341,1721556648092,-500.0,0.00013972,2]
[332828342,1721556648102,-1151.66,0.00013972,2]
[332828343,1721556648111,-500.0,0.00013972,2]
[332828344,1721556648121,-500.0,0.00013972,2]
[332828345,1721556648131,-1369.19,0.00013972,2]
[332828346,1721556648141,-182.64246207,0.00013972,2]
[332828347,1721556648151,-500.0,0.00013972,2]
[332828348,1721556648162,-500.0,0.00013972,2]
[332828349,1721556648172,-579.43650293,0.00013972,2]
[332828350,1721556648183,-500.0,0.00013972,2]
[332828351,1721556648193,-500.0,0.00013972,2]
[332828352,1721556648204,-720.87,0.00013972,2]
[332828353,1721556648215,-500.0,0.00013972,2]
[332828354,1721556648226,-500.0,0.00013972,2]
[332828355,1721556648238,-500.0,0.00013972,2]
[332828356,1721556648248,-500.0,0.00013972,2]
[332828357,1721556648258,-500.0,0.00013972,2]
[332828358,1721556648268,-500.0,0.00013972,2]
[332828359,1721556648277,-543.53,0.00013972,2]
[332828360,1721556648286,-500.0,0.00013972,2]
[332828361,1721556648297,-500.0,0.00013972,2]
[332828362,1721556648307,-500.0,0.00013972,2]
[332828363,1721556648317,-271.1165053,0.00013972,2]
[332828364,1721556648327,-503.81560742,0.00013972,2]
[332828365,1721556648339,-505.42141396,0.00013972,2]
[332828366,1721556648348,-500.0,0.00013972,2]
[332828367,1721556648358,-564.0,0.00013972,2]
[332828368,1721556648369,-500.0,0.00013972,2]
[332828369,1721556648378,-500.0,0.00013972,2]
[332828370,1721556648388,-500.0,0.00013972,2]
[332828371,1721556648399,-500.0,0.00013972,2]
[332828372,1721556648410,-500.0,0.00013972,2]
[332828373,1721556648420,-500.0,0.00013972,2]
[332828374,1721556648430,-569.73,0.00013972,2]
[332828375,1721556648440,-729.24,0.00013972,2]
[332828376,1721556648450,-506.59,0.00013972,2]
[332828377,1721556648460,-517.2,0.00013972,2]
[332828378,1721556648470,-373.62596632,0.00013972,2]
[332828379,1721556648481,-500.0,0.00013972,2]
[332828380,1721556648491,-2302.1,0.00013972,2]
[332828381,1721556648500,-604.43,0.00013972,2]
[332828382,1721556648510,-500.0,0.00013972,2]
[332828383,1721556648519,-500.0,0.00013972,2]
[332828384,1721556648528,-1451.45,0.00013972,2]
[332828385,1721556648538,-500.0,0.00013972,2]
[332828386,1721556648547,-500.0,0.00013972,2]
[332828387,1721556648557,-509.35003568,0.00013972,2]
[332828388,1721556648567,-500.0,0.00013972,2]
[332828389,1721556648577,-500.0,0.00013972,2]
[332828390,1721556648586,-500.0,0.00013972,2]
[332828391,1721556648596,-500.0,0.00013972,2]
[332828392,1721556648607,-742.95,0.00013972,2]
[332828393,1721556648617,-616.35700912,0.00013972,2]
[332828394,1721556648629,-500.0,0.00013972,2]
[332828395,1721556648639,-500.0,0.00013972,2]
[332828396,1721556648649,-151.0,0.00013972,2]
[332828397,1721556648660,-500.0,0.00013972,2]
[332828398,1721556648672,-500.0,0.00013972,2]
[332828399,1721556648681,-1626.3,0.00013972,2]
[332828400,1721556648691,-151.0,0.00013972,2]
[332828401,1721556648702,-500.0,0.00013972,2]
[332828402,1721556648712,-506.75001653,0.00013972,2]
[332828403,1721556648722,-1085.75,0.00013972,2]
[332828404,1721556648733,-1477.24,0.00013972,2]
[332828405,1721556648746,-502.51666468,0.00013972,2]
[332828406,1721556648757,-576.26,0.00013972,2]
[332828407,1721556648770,-507.73783479,0.00013972,2]
[332828408,1721556648780,-528.81,0.00013972,2]
[332828409,1721556648790,-500.0,0.00013972,2]
[332828410,1721556648801,-1311.77,0.00013972,2]
[332828411,1721556648812,-1799.45,0.00013972,2]
[332828412,1721556648822,-481.67309,0.00013972,2]
[332828413,1721556648833,-500.0,0.00013972,2]
[332828414,1721556648843,-500.0,0.00013972,2]
[332828415,1721556648854,-1365.18,0.00013972,2]
[332828416,1721556648863,-481.67309,0.00013972,2]
[332828417,1721556648873,-500.0,0.00013972,2]
[332828418,1721556648883,-500.0,0.00013972,2]
[332828419,1721556648892,-500.0,0.00013972,2]
[332828420,1721556648903,-500.0,0.00013972,2]
[332828421,1721556648913,-2501.84,0.00013972,2]
[332828422,1721556648922,-500.0,0.00013972,2]
[332828423,1721556648934,-500.0,0.00013972,2]
[332828424,1721556648943,-523.09848047,0.00013972,2]
[332828425,1721556648953,-500.0,0.00013972,2]
[332828426,1721556648963,-544.42,0.00013972,2]
[332828427,1721556648973,-500.0,0.00013972,2]
[332828428,1721556648984,-1856.778109,0.00013972,2]
[332828429,1721556648995,-3174.2,0.00013972,2]
[332828430,1721556649005,-500.0,0.00013972,2]
[332828431,1721556649017,-500.0,0.00013972,2]
[332828432,1721556649027,-500.0,0.00013972,2]
[332828433,1721556649037,-1856.778109,0.00013972,2]
[332828434,1721556649047,-533.20903313,0.00013972,2]
[332828435,1721556649059,-2134.01,0.00013972,2]
[332828436,1721556649069,-680.36,0.00013972,2]
[332828437,1721556649080,-500.0,0.00013972,2]
[332828438,1721556649091,-4482.68,0.00013972,2]
[332828439,1721556649101,-500.0,0.00013972,2]
[332828440,1721556649111,-957.51,0.00013972,2]
[332828441,1721556649121,-510.72499299,0.00013972,2]
[332828442,1721556649131,-1518.76,0.00013972,2]
[332828443,1721556649141,-500.0,0.00013972,2]
[332828444,1721556649151,-500.0,0.00013972,2]
[332828445,1721556649161,-1947.76,0.00013972,2]
[332828446,1721556649171,-930.2,0.00013972,2]
[332828447,1721556649182,-500.0,0.00013972,2]
[332828448,1721556649192,-853.97,0.00013972,2]
[332828449,1721556649202,-786.92,0.00013972,2]
[332828450,1721556649212,-500.0,0.00013972,2]
[332828451,1721556649222,-500.0,0.00013972,2]
[332828452,1721556649232,-1931.1,0.00013972,2]
[332828453,1721556649242,-500.0,0.00013972,2]
[332828454,1721556649253,-507.82940407,0.00013972,2]
[332828455,1721556649264,-1215.41,0.00013972,2]
[332828456,1721556649275,-552.61,0.00013972,2]
[332828457,1721556649285,-500.0,0.00013972,2]
[332828458,1721556649297,-500.0,0.00013972,2]
[332828459,1721556649308,-500.0,0.00013972,2]
[332828460,1721556649319,-500.0,0.00013972,2]
[332828461,1721556649329,-504.89101976,0.00013972,2]
[332828462,1721556649339,-575.17592722,0.00013972,2]
[332828463,1721556649349,-526.81,0.00013972,2]
[332828464,1721556649359,-710.76,0.00013972,2]
[332828465,1721556649369,-500.0,0.00013972,2]
[332828466,1721556649379,-811.58,0.00013972,2]
[332828467,1721556649389,-500.0,0.00013972,2]
[332828468,1721556649399,-500.0,0.00013972,2]
[332828469,1721556649411,-500.0,0.00013972,2]
[332828470,1721556649421,-1416.2,0.00013972,2]
[332828471,1721556649432,-500.0,0.00013972,2]
[332828472,1721556649442,-1012.85,0.00013972,2]
[332828473,1721556649453,-500.0,0.00013972,2]
[332828474,1721556649464,-500.0,0.00013972,2]
[332828475,1721556649475,-1724.01,0.00013972,2]
[332828476,1721556649485,-704.05,0.00013972,2]
[332828477,1721556649496,-2676.28,0.00013972,2]
[332828478,1721556649507,-553.23,0.00013972,2]
[332828479,1721556649517,-500.0,0.00013972,2]
[332828480,1721556649527,-788.22,0.00013972,2]
[332828481,1721556649538,-500.0,0.00013972,2]
[332828482,1721556649549,-2523.75,0.00013972,2]
[332828483,1721556649559,-500.0,0.00013972,2]
[332828484,1721556649570,-5791.62,0.00013972,2]
[332828485,1721556649583,-500.0,0.00013972,2]
[332828486,1721556649594,-500.0,0.00013972,2]
[332828487,1721556649606,-500.0,0.00013972,2]
[332828488,1721556649617,-500.0,0.00013972,2]
[332828489,1721556649627,-500.0,0.00013972,2]
[332828490,1721556649637,-1049.63,0.00013972,2]
[332828491,1721556649647,-1990.1,0.00013972,2]
[332828492,1721556649657,-479.0328799,0.00013972,2]
[332828493,1721556649672,-500.0,0.00013972,2]
[332828494,1721556649683,-13483.19,0.00013972,2]
[332828495,1721556649694,-500.0,0.00013972,2]
[332828496,1721556649706,-500.0,0.00013972,2]
[332828497,1721556649716,-500.0,0.00013972,2]
[332828498,1721556649727,-500.0,0.00013972,2]
[332828499,1721556649737,-500.0,0.00013972,2]
[332828500,1721556649748,-796.75,0.00013972,2]
[332828501,1721556649760,-1436.68,0.00013972,2]
[332828502,1721556649770,-714.23,0.00013972,2]
[332828503,1721556649780,-3689.8,0.00013972,2]
[332828504,1721556649790,-500.0,0.00013972,2]
[332828505,1721556649799,-500.0,0.00013972,2]
[332828506,1721556649810,-2291.18,0.00013972,2]
[332828507,1721556649819,-500.0,0.00013972,2]
[332828508,1721556649830,-500.0,0.00013972,2]
[332828509,1721556649839,-500.0,0.00013972,2]
[332828510,1721556649849,-994.65,0.00013972,2]
[332828511,1721556649859,-500.0,0.00013972,2]
[332828512,1721556649869,-500.0,0.00013972,2]
[332828513,1721556649880,-4191.02,0.00013972,2]
[332828514,1721556649891,-2505.290293,0.00013972,2]
[332828515,1721556649901,-506.01164318,0.00013972,2]
[332828516,1721556649911,-500.0,0.00013972,2]
[332828517,1721556649921,-2505.290293,0.00013972,2]
[332828518,1721556649931,-2397.49,0.00013972,2]
[332828519,1721556649941,-527.08,0.00013972,2]
[332828520,1721556649952,-500.0,0.00013972,2]
[332828521,1721556649962,-500.0,0.00013972,2]
[332828522,1721556649973,-500.0,0.00013972,2]
[332828523,1721556649983,-500.0,0.00013972,2]
[332828524,1721556649993,-775.93,0.00013972,2]
[332828525,1721556650002,-500.0,0.00013972,2]
[332828526,1721556650013,-500.0,0.00013972,2]
[332828527,1721556650023,-1057.52,0.00013972,2]
[332828528,1721556650032,-503.40828399,0.00013972,2]
[332828529,1721556650042,-2213.48,0.00013972,2]
[332828530,1721556650051,-500.0,0.00013972,2]
[332828531,1721556650061,-500.0,0.00013972,2]
[332828532,1721556650070,-500.0,0.00013972,2]
[332828533,1721556650081,-8671.71,0.00013972,2]
[332828534,1721556650091,-1889.7,0.00013972,2]
[332828535,1721556650100,-500.0,0.00013972,2]
[332828536,1721556650110,-5632.17,0.00013972,2]
[332828537,1721556650120,-500.0,0.00013972,2]
[332828538,1721556650130,-500.0,0.00013972,2]
[332828539,1721556650140,-183.89353212,0.00013972,2]
[332828540,1721556650150,-580.8537819,0.00013972,2]
[332828541,1721556650159,-935.93,0.00013972,2]
[332828542,1721556650169,-659.18,0.00013972,2]
[332828543,1721556650179,-2424.11,0.00013972,2]
[332828544,1721556650188,-1723.55,0.00013972,2]
[332828545,1721556650198,-1253.67,0.00013972,2]
[332828546,1721556650207,-500.0,0.00013972,2]
[332828547,1721556650217,-589.48,0.00013972,2]
[332828548,1721556650226,-600.43,0.00013972,2]
[332828549,1721556650236,-333.58264193,0.00013972,2]
[332828550,1721556650246,-500.0,0.00013972,2]
[332828551,1721556650256,-500.0,0.00013972,2]
[332828552,1721556650266,-928.43,0.00013972,2]
[332828553,1721556650276,-500.0,0.00013972,2]
[332828554,1721556650285,-151.0,0.00013972,2]
[332828555,1721556650295,-500.0,0.00013972,2]
[332828556,1721556650304,-500.0,0.00013972,2]
[332828557,1721556650314,-970.62,0.00013972,2]
[332828558,1721556650324,-976.27,0.00013972,2]
[332828559,1721556650335,-500.0,0.00013972,2]
[332828560,1721556650345,-500.0,0.00013972,2]
[332828561,1721556650356,-7636.18,0.00013972,2]
[332828562,1721556650366,-647.55,0.00013972,2]
[332828563,1721556650376,-4132.02,0.00013972,2]
[332828564,1721556650386,-1077.15,0.00013972,2]
[332828565,1721556650396,-500.0,0.00013972,2]
[332828566,1721556650406,-500.0,0.00013972,2]
[332828567,1721556650416,-2307.61,0.00013972,2]
[332828568,1721556650426,-500.0,0.00013972,2]
[332828569,1721556650436,-837.86,0.00013972,2]
[332828570,1721556650446,-500.0,0.00013972,2]
[332828571,1721556650455,-500.0,0.00013972,2]
[332828572,1721556650465,-670.11,0.00013972,2]
[332828573,1721556650474,-500.0,0.00013972,2]
[332828574,1721556650484,-500.0,0.00013972,2]
[332828575,1721556650494,-500.0,0.00013972,2]
[332828576,1721556650504,-500.0,0.00013972,2]
[332828577,1721556650513,-500.0,0.00013972,2]
[332828578,1721556650523,-500.0,0.00013972,2]
[332828579,1721556650534,-500.0,0.00013972,2]
[332828580,1721556650544,-2035.58,0.00013972,2]
[332828581,1721556650555,-1669.97,0.00013972,2]
[332828582,1721556650565,-500.0,0.00013972,2]
[332828583,1721556650575,-500.0,0.00013972,2]
[332828584,1721556650587,-500.0,0.00013972,2]
[332828585,1721556650598,-1055.19,0.00013972,2]
[332828586,1721556650610,-1578.63,0.00013972,2]
[332828587,1721556650620,-500.0,0.00013972,2]
[332828588,1721556650630,-923.12,0.00013972,2]
[332828589,1721556650640,-500.0,0.00013972,2]
[332828590,1721556650650,-505.96858512,0.00013972,2]
[332828591,1721556650660,-473.58590118,0.00013972,2]
[332828592,1721556650673,-500.0,0.00013972,2]
[332828593,1721556650683,-863.39,0.00013972,2]
[332828594,1721556650693,-553.89,0.00013972,2]
[332828595,1721556650703,-2665.28,0.00013972,2]
[332828596,1721556650715,-1820.86,0.00013972,2]
[332828597,1721556650725,-500.0,0.00013972,2]
[332828598,1721556650735,-722.53,0.00013972,2]
[332828599,1721556650746,-500.0,0.00013972,2]
[332828600,1721556650756,-519.25,0.00013972,2]
[332828601,1721556650766,-4686.45,0.00013972,2]
[332828602,1721556650776,-500.0,0.00013972,2]
[332828603,1721556650786,-500.0,0.00013972,2]
[332828604,1721556650796,-1538.99,0.00013972,2]
[332828605,1721556650806,-500.0,0.00013972,2]
[332828606,1721556650816,-761.74,0.00013972,2]
[332828607,1721556650826,-500.0,0.00013972,2]
[332828608,1721556650841,-500.0,0.00013972,2]
[332828609,1721556650851,-853.26,0.00013972,2]
[332828610,1721556650862,-500.0,0.00013972,2]
[332828611,1721556650872,-500.0,0.00013972,2]
[332828612,1721556650882,-1181.26,0.00013972,2]
[332828613,1721556650892,-500.0,0.00013972,2]
[332828614,1721556650901,-801.15,0.00013972,2]
[332828615,1721556650911,-6120.44,0.00013972,2]
[332828616,1721556650920,-500.0,0.00013972,2]
[332828617,1721556650930,-500.0,0.00013972,2]
[332828618,1721556650941,-500.0,0.00013972,2]
[332828619,1721556650953,-500.0,0.00013972,2]
[332828620,1721556650963,-500.0,0.00013972,2]
[332828621,1721556650973,-666.49,0.00013972,2]
[332828622,1721556650983,-505.78944937,0.00013972,2]
[332828623,1721556650993,-1470.26,0.00013972,2]
[332828624,1721556651004,-500.0,0.00013972,2]
[332828625,1721556651014,-500.0,0.00013972,2]
[332828626,1721556651025,-551.31,0.00013972,2]
[332828627,1721556651035,-576.87,0.00013972,2]
[332828628,1721556651045,-532.79055912,0.00013972,2]
[332828629,1721556651055,-500.0,0.00013972,2]
[332828630,1721556651066,-500.0,0.00013972,2]
[332828631,1721556651077,-151.0,0.00013972,2]
[332828632,1721556651087,-151.0,0.00013972,2]
[332828633,1721556651098,-500.0,0.00013972,2]
[332828634,1721556651108,-500.0,0.00013972,2]
[332828635,1721556651120,-1586.94,0.00013972,2]
[332828636,1721556651130,-1761.37,0.00013972,2]
[332828637,1721556651142,-151.0,0.00013972,2]
[332828638,1721556651153,-151.0,0.00013972,2]
[332828639,1721556651163,-500.0,0.00013972,2]
[332828640,1721556651173,-526.74029633,0.00013972,2]
[332828641,1721556651183,-500.0,0.00013972,2]
[332828642,1721556651193,-500.0,0.00013972,2]
[332828643,1721556651206,-3424.0,0.00013972,2]
[332828644,1721556651217,-1128.96566179,0.00014016,2]
[332828645,1721556651227,-988.0,0.000142,2]
[332828646,1721556651238,-500.0,0.00014246,2]
[332828647,1721556651248,-500.0,0.00014246,2]
[332828648,1721556651258,-500.0,0.00014246,2]
[332828649,1721556651268,-500.0,0.00014246,2]
[332828650,1721556651278,-2105.99,0.00014246,2]
[332828651,1721556651288,-522.41324221,0.00014246,2]
[332828652,1721556651298,-500.0,0.00014246,2]
[332828653,1721556651309,-151.0,0.00014246,2]
[332828654,1721556651319,-500.0,0.00014246,2]
[332828655,1721556651329,-500.0,0.00014246,2]
[332828656,1721556651339,-762.19,0.00014246,2]
[332828657,1721556651349,-500.0,0.00014246,2]
[332828658,1721556651360,-209.24527962,0.00014246,2]
[332828659,1721556651370,-500.0,0.00014246,2]
[332828660,1721556651380,-500.0,0.00014246,2]
[332828661,1721556651392,-569.25,0.00014246,2]
[332828662,1721556651404,-466.47768133,0.00014246,2]
[332828663,1721556651414,-500.0,0.00014246,2]
[332828664,1721556651424,-385.68256539,0.00014246,2]
[332828665,1721556651434,-1005.26,0.00014246,2]
[332828666,1721556651444,-500.0,0.00014246,2]
[332828667,1721556651454,-500.0,0.00014246,2]
[332828668,1721556651464,-500.0,0.00014246,2]
[332828669,1721556651474,-506.89742752,0.00014246,2]
[332828670,1721556651484,-536.49,0.00014246,2]
[332828671,1721556651494,-500.0,0.00014246,2]